bitfinex/quotes_SOLUSD_20250217
["timestamp","ask_amount","ask_price","bid_price","bid_amount"]
[1739816341723,24.20545141,178.84,178.77,18.61395141]
[1739816342031,18.61395141,178.83,178.77,18.61395141]
[1739816342443,18.73395141,178.86,178.79,18.61395141]
[1739816342648,18.73395141,178.86,178.81,18.61395141]
[1739816342649,0.12,178.86,178.81,18.61395141]
[1739816343023,5.711,178.86,178.81,18.61395141]
[1739816343955,0.12,178.86,178.81,18.61395141]
[1739816344258,5.7109,178.86,178.81,18.61395141]
[1739816344437,0.12,178.86,178.82,18.61395141]
[1739816344750,0.12,178.86,178.85,18.61395141]
[1739816346933,0.12,178.86,178.85,24.20515141]
[1739816347257,0.12,178.86,178.82,24.20605141]
[1739816347438,0.12,178.86,178.81,25.76095141]
[1739816347644,5.7109,178.86,178.81,20.16845141]
[1739816348951,24.32485141,178.86,178.8,18.61395141]
[1739816349562,18.61395141,178.83,178.77,114.54735141]
[1739816349863,18.61395141,178.83,178.77,25.84735141]
[1739816350058,18.61395141,178.83,178.77,20.25395141]
[1739816350669,18.61395141,178.83,178.77,18.61395141]
[1739816350973,24.20645141,178.81,178.75,18.67695141]
[1739816351144,24.20645141,178.81,178.75,0.063]
[1739816351145,18.61395141,178.79,178.75,0.063]
[1739816351344,18.61395141,178.78,178.75,0.063]
[1739816351547,18.61395141,178.79,178.75,0.063]
[1739816351747,18.61395141,178.8,178.75,0.063]
[1739816351963,5.5925,178.81,178.75,0.063]
[1739816351964,18.61395141,178.79,178.75,0.063]
[1739816352463,18.61395141,178.77,178.75,0.063]
[1739816353263,18.61395141,178.78,178.75,0.063]
[1739816353481,24.20725141,178.79,178.75,0.063]
[1739816354148,18.61395141,178.78,178.75,0.063]
[1739816354348,24.20725141,178.79,178.75,0.063]
[1739816354556,18.61395141,178.78,178.75,0.063]
[1739816354959,6.4329,178.82,178.75,0.063]
[1739816355157,18.61395141,178.79,178.75,0.063]
[1739816355359,18.61395141,178.78,178.75,0.063]
[1739816356057,18.61395141,178.79,178.75,0.063]
[1739816356461,18.61395141,178.78,178.75,0.063]
[1739816357674,18.61395141,178.76,178.75,0.063]
[1739816358172,24.20715141,178.79,178.75,0.063]
[1739816359174,18.61395141,178.81,178.75,18.67695141]
[1739816359473,24.20635141,178.82,178.76,18.61395141]
[1739816359876,24.20585141,178.83,178.77,18.61395141]
[1739816360071,5.5919,178.83,178.78,18.61395141]
[1739816360255,24.20555141,178.84,178.78,18.61395141]
[1739816360449,18.61395141,178.84,178.78,18.61395141]
[1739816360646,18.61395141,178.85,178.79,18.61395141]
[1739816360851,0.12,178.86,178.81,18.61395141]
[1739816361168,0.12,178.86,178.82,18.61395141]
[1739816361169,0.03,178.83,178.82,18.61395141]
[1739816361556,0.03,178.83,178.82,24.20615141]
[1739816362058,0.12,178.86,178.8,18.61395141]
[1739816362264,0.12,178.86,178.82,18.61395141]
[1739816362465,0.12,178.86,178.81,18.61395141]
[1739816362872,0.12,178.86,178.8,18.61395141]
[1739816363075,18.61395141,178.85,178.79,18.61395141]
[1739816363282,24.20525141,178.85,178.79,18.61395141]
[1739816363491,24.20525141,178.85,178.79,24.20695141]
[1739816363779,24.20525141,178.85,178.79,5.593]
[1739816364280,18.73395141,178.86,178.8,18.61395141]
[1739816364967,0.12,178.86,178.81,18.61395141]
[1739816365177,0.12,178.86,178.77,39.5781]
[1739816365488,0.12,178.86,178.83,18.61395141]
[1739816365680,0.12,178.86,178.84,18.61395141]
[1739816366182,0.12,178.86,178.85,18.61395141]
[1739816367387,0.12,178.86,178.85,24.20515141]
[1739816367564,0.12,178.86,178.85,5.5912]
[1739816367768,0.12,178.86,178.84,18.61395141]
[1739816367963,0.12,178.86,178.82,18.61395141]
[1739816368265,0.12,178.86,178.81,18.61395141]
[1739816368875,0.12,178.86,178.82,18.61395141]
[1739816369276,0.12,178.86,178.82,24.20605141]
[1739816370893,0.12,178.86,178.83,18.61395141]
[1739816371274,0.12,178.86,178.8,5.5928]
[1739816371484,0.12,178.86,178.82,18.61395141]
[1739816372161,0.12,178.86,178.81,18.61395141]
[1739816372377,18.73395141,178.86,178.8,24.20675141]
[1739816373282,0.12,178.86,178.81,18.61395141]
[1739816373673,18.61395141,178.85,178.79,25.86475141]
[1739816374395,0.15,178.86,178.81,18.61395141]
[1739816374916,18.76395141,178.86,178.8,18.61395141]
[1739816375365,18.76395141,178.86,178.8,24.20655141]
[1739816375568,18.73395141,178.86,178.8,24.20655141]
[1739816375988,0.12,178.86,178.81,18.61395141]
[1739816376294,0.12,178.86,178.8,5.5926]
[1739816376295,18.73395141,178.86,178.8,18.61395141]
[1739816376498,18.61395141,178.85,178.79,20.27165141]
[1739816377267,18.61395141,178.84,178.79,1.6577]
[1739816377983,24.20565141,178.84,178.79,1.6577]
[1739816378293,18.61395141,178.85,178.79,7.2508]
[1739816378487,18.61395141,178.85,178.79,25.86475141]
[1739816379198,24.32495141,178.86,178.8,18.61395141]
[1739816379572,24.32495141,178.86,178.8,24.20655141]
[1739816379776,0.12,178.86,178.81,18.61395141]
[1739816380086,0.12,178.86,178.82,18.61395141]
[1739816380488,0.12,178.86,178.81,18.61395141]
[1739816381490,0.12,178.86,178.8,24.20655141]
[1739816381794,24.32495141,178.86,178.8,24.20655141]
[1739816382609,18.73395141,178.86,178.8,24.20655141]
[1739816382784,24.32495141,178.86,178.8,24.20655141]
[1739816382989,18.61395141,178.85,178.79,7.2506]
[1739816383193,18.61395141,178.85,178.79,25.86455141]
[1739816384399,18.73395141,178.86,178.8,18.61395141]
[1739816386007,18.73395141,178.86,178.81,5.5925]
[1739816386424,24.32485141,178.86,178.81,5.5925]
[1739816386623,18.73395141,178.86,178.81,5.5925]
[1739816387714,24.32485141,178.86,178.81,5.6555]
[1739816388026,18.76395141,178.86,178.81,5.6555]
[1739816388386,24.35485141,178.86,178.81,5.6555]
[1739816388590,24.32485141,178.86,178.81,5.6555]
[1739816388818,18.61395141,178.85,178.81,0.063]
[1739816389025,18.61395141,178.84,178.81,0.063]
[1739816389702,0.12,178.86,178.81,0.063]
[1739816389915,18.73395141,178.86,178.81,0.063]
[1739816390115,0.12,178.86,178.81,0.063]
[1739816390920,0.12,178.86,178.82,18.61395141]
[1739816391424,0.12,178.86,178.81,18.67695141]
[1739816392121,0.12,178.86,178.82,5.5922]
[1739816392297,0.12,178.86,178.81,24.26945141]
[1739816394014,24.32495141,178.86,178.81,5.6555]
[1739816394222,18.73395141,178.86,178.81,5.6555]
[1739816394535,24.32495141,178.86,178.81,5.6555]
[1739816395051,24.32495141,178.86,178.81,0.063]
[1739816395224,18.61395141,178.84,178.81,0.063]
[1739816395535,18.61395141,178.83,178.81,0.063]
[1739816395749,18.61395141,178.82,178.81,0.063]
[1739816396536,24.20615141,178.82,178.81,0.063]
[1739816397123,45.31799994,178.82,178.81,0.063]
[1739816399449,25.82665141,178.82,178.81,0.063]
[1739816400110,39.23849994,178.82,178.81,0.063]
[1739816402246,13.41184853,178.81,178.75,0.063]
[1739816402461,18.61395141,178.76,178.75,0.063]
[1739816404328,37.61979994,178.76,178.75,0.063]
[1739816404529,37.61979994,178.76,178.67,0.063]
[1739816404530,13.41184853,178.74,178.67,0.063]
[1739816404737,18.61395141,178.7,178.67,0.063]
[1739816404946,18.61395141,178.7,178.65,0.063]
[1739816405153,18.61395141,178.7,178.65,5.6605]
[1739816405331,18.61395141,178.71,178.65,24.27445141]
[1739816405660,18.61395141,178.7,178.65,0.063]
[1739816405863,18.61395141,178.69,178.65,0.063]
[1739816406046,18.61395141,178.7,178.65,0.063]
[1739816406251,18.61395141,178.73,178.67,18.61395141]
[1739816406456,18.61395141,178.72,178.66,18.61395141]
[1739816407054,18.61395141,178.7,178.65,0.063]
[1739816409052,24.20995141,178.7,178.65,0.063]
[1739816409231,18.61395141,178.7,178.65,0.063]
[1739816409427,24.20995141,178.7,178.65,0.063]
[1739816409640,18.61395141,178.68,178.65,0.063]
[1739816409842,18.61395141,178.67,178.65,0.063]
[1739816410640,18.61395141,178.66,178.65,0.063]
[1739816412037,18.61395141,178.67,178.65,0.063]
[1739816412233,18.61395141,178.66,178.65,0.063]
[1739816412752,24.21115141,178.66,178.65,0.063]
[1739816414259,18.61395141,178.66,178.65,0.063]
[1739816415856,24.21115141,178.66,178.65,0.063]
[1739816416369,37.62299994,178.66,178.65,0.063]
[1739816416735,37.62299994,178.66,178.63,0.063]
[1739816416971,18.61395141,178.64,178.63,0.063]
[1739816417261,32.02579994,178.64,178.57,0.063]
[1739816417450,18.61395141,178.58,178.57,0.063]
[1739816418373,24.21365141,178.58,178.57,0.063]
[1739816419643,37.62549994,178.58,178.57,0.063]
[1739816420003,13.41184853,178.57,178.54,0.063]
[1739816420146,18.61395141,178.55,178.54,0.063]
[1739816420672,18.61395141,178.58,178.54,0.063]
[1739816420871,18.61395141,178.6,178.55,7.8147]
[1739816421071,18.61395141,178.61,178.55,26.42865141]
[1739816421275,18.61395141,178.58,178.55,1.5929]
[1739816421582,18.61395141,178.56,178.54,0.063]
[1739816421965,18.61395141,178.55,178.54,0.063]
[1739816424172,24.21455141,178.55,178.54,0.063]
[1739816425598,20.0,178.52,178.47,0.063]
[1739816425769,18.61395141,178.48,178.47,0.063]
[1739816426161,24.21675141,178.48,178.47,0.063]
[1739816429184,24.21645141,178.49,178.47,0.063]
[1739816429699,18.61395141,178.48,178.47,0.063]
[1739816429866,32.02579994,178.48,178.47,0.063]
[1739816430063,24.21675141,178.48,178.47,0.063]
[1739816430488,37.62859994,178.48,178.47,0.0001]
[1739816430801,24.21675141,178.48,178.47,0.0001]
[1739816432418,24.21655141,178.49,178.47,0.0001]
[1739816432706,18.61395141,178.53,178.47,18.61405141]
[1739816432918,18.61395141,178.54,178.48,18.61395141]
[1739816433216,24.21455141,178.55,178.49,18.61395141]
[1739816433581,18.61395141,178.53,178.47,18.61405141]
[1739816434014,18.61395141,178.54,178.48,18.61395141]
[1739816434384,24.21495141,178.54,178.48,24.21675141]
[1739816434589,18.61395141,178.55,178.49,18.61395141]
[1739816434889,18.61395141,178.56,178.49,18.61395141]
[1739816435589,24.21395141,178.57,178.51,18.61395141]
[1739816435911,18.61395141,178.56,178.5,18.61395141]
[1739816436282,0.03,178.56,178.51,18.61395141]
[1739816436690,0.03,178.56,178.53,18.61395141]
[1739816437022,18.64395141,178.56,178.5,18.61395141]
[1739816438114,24.24425141,178.56,178.5,24.21595141]
[1739816438296,24.24425141,178.56,178.5,18.61395141]
[1739816438498,18.61395141,178.55,178.49,18.61395141]
[1739816438799,18.61395141,178.55,178.48,24.21675141]
[1739816439111,18.61395141,178.54,178.47,18.61405141]
[1739816439294,18.61395141,178.54,178.48,18.61395141]
[1739816439481,18.61395141,178.55,178.48,18.61395141]
[1739816439686,18.61395141,178.55,178.49,18.61395141]
[1739816440279,18.61395141,178.55,178.47,5.6032]
[1739816440280,24.21485141,178.54,178.48,18.61395141]
[1739816441720,24.21485141,178.54,178.47,5.6031]
[1739816441882,24.21485141,178.54,178.48,18.61395141]
[1739816442079,18.61395141,178.53,178.47,0.0001]
[1739816442282,18.61395141,178.54,178.48,18.61395141]
[1739816442517,20.0,178.48,178.47,0.0001]
[1739816442710,32.02579994,178.48,178.38,8.088]
[1739816443009,18.61395141,178.44,178.38,26.70195141]
[1739816443312,18.61395141,178.43,178.38,1.5665]
[1739816443988,24.21855141,178.43,178.38,1.5665]
[1739816444919,18.61395141,178.44,178.38,1.5665]
[1739816445084,3.64854472,178.42,178.39,18.61395141]
[1739816445285,3.64854472,178.42,178.38,20.18045141]
[1739816445583,3.64854472,178.42,178.38,1.5665]
[1739816446084,3.64854472,178.42,178.38,25.78635141]
[1739816446294,3.64854472,178.42,178.39,18.61395141]
[1739816446495,3.64854472,178.42,178.4,18.61395141]
[1739816446913,1.40328643,178.43,178.4,18.61395141]
[1739816448218,1.40328643,178.43,178.4,24.21925141]
[1739816448718,1.40328643,178.43,178.4,5.6053]
[1739816448913,22.26217155,178.45,178.39,24.28255141]
[1739816449109,18.61395141,178.44,178.39,0.063]
[1739816449313,18.61395141,178.42,178.39,0.063]
[1739816449914,9.25212014,178.45,178.39,0.063]
[1739816449915,18.61395141,178.44,178.39,0.063]
[1739816450121,3.64822014,178.45,178.4,18.61395141]
[1739816450486,17.11395141,178.46,178.4,24.21905141]
[1739816450718,18.61395141,178.47,178.41,18.61395141]
[1739816451092,0.03,178.48,178.43,18.61395141]
[1739816451292,0.03,178.48,178.45,18.61395141]
[1739816451610,1.40298498,178.46,178.45,18.61395141]
[1739816452323,0.03,178.48,178.45,20.98945473]
[1739816452622,0.03,178.48,178.47,18.61395141]
[1739816454805,0.03,178.48,178.47,24.21705141]
[1739816458291,0.03,178.48,178.47,56.24285135]
[1739816459601,0.03,178.56,178.47,56.83890282]
[1739816459800,0.03,178.56,178.53,18.61395141]
[1739816461105,0.03,178.56,178.55,18.61395141]
[1739816461322,0.03,178.56,178.55,24.21455141]
[1739816462535,0.03,178.56,178.55,18.61395141]
[1739816463042,0.03,178.56,178.55,24.21455141]
[1739816463825,0.03,178.56,178.55,37.62639994]
[1739816465521,0.03,178.56,178.55,18.61395141]
[1739816466039,0.03,178.56,178.54,18.61395141]
[1739816466442,0.03,178.56,178.53,18.61395141]
[1739816466651,0.03,178.56,178.52,18.61395141]
[1739816466950,0.03,178.56,178.5,90.3994]
[1739816467123,18.64395141,178.56,178.5,107.45395141]
[1739816467937,24.24445141,178.56,178.5,107.45395141]
[1739816468251,24.24445141,178.56,178.5,106.95395141]
[1739816468754,1.40180825,178.55,178.5,106.95395141]
[1739816469048,1.40180825,178.55,178.5,112.55605141]
[1739816469745,20.01575966,178.55,178.5,88.34]
[1739816469939,25.61665966,178.55,178.5,88.34]
[1739816470240,18.61395141,178.54,178.5,88.34]
[1739816470952,25.61665966,178.55,178.5,88.34]
[1739816471331,18.61395141,178.54,178.5,88.34]
[1739816471530,25.61665966,178.55,178.5,88.34]
[1739816471735,1.40180825,178.54,178.5,88.34]
[1739816471947,1.40180825,178.54,178.5,106.95395141]
[1739816472651,7.00290825,178.54,178.5,106.95395141]
[1739816472818,7.00290825,178.54,178.5,88.34]
[1739816474323,1.40180825,178.53,178.5,88.34]
[1739816474538,18.61395141,178.51,178.48,0.063]
[1739816475019,18.61395141,178.5,178.48,0.063]
[1739816475224,18.61395141,178.49,178.48,0.063]
[1739816475438,20.26215141,178.49,178.48,0.063]
[1739816476048,21.66395966,178.49,178.48,0.063]
[1739816476349,21.66395966,178.49,178.4,88.82]
[1739816476350,19.6099,178.48,178.4,88.82]
[1739816476656,18.61395141,178.42,178.39,0.063]
[1739816476957,18.61395141,178.41,178.39,0.063]
[1739816477154,18.61395141,178.42,178.39,0.063]
[1739816477323,19.6099,178.48,178.39,5.6685]
[1739816477324,3.31712475,178.41,178.39,5.6685]
[1739816477531,3.31712475,178.41,178.4,18.61395141]
[1739816478949,5.6039,178.45,178.4,18.61395141]
[1739816480158,10.77862438,178.44,178.4,18.61395141]
[1739816480652,14.09574913,178.44,178.4,18.61395141]
[1739816480854,17.74381311,178.44,178.4,18.61395141]
[1739816481057,23.34801311,178.44,178.39,18.67695141]
[1739816481353,41.96196452,178.44,178.39,0.063]
[1739816481563,18.61395141,178.43,178.39,0.063]
[1739816481731,18.61395141,178.42,178.39,0.063]
[1739816482345,36.35776452,178.43,178.39,0.063]
[1739816482823,17.74381311,178.43,178.39,0.063]
[1739816483030,23.34831311,178.43,178.39,0.063]
[1739816483247,10.77862438,178.42,178.39,0.063]
[1739816483455,17.74381311,178.42,178.39,18.67695141]
[1739816483658,17.74381311,178.42,178.41,18.61395141]
[1739816483843,17.74381311,178.42,178.4,0.063]
[1739816485152,9.25306398,178.41,178.4,0.063]
[1739816485341,13.39868874,178.41,178.4,0.063]
[1739816486755,7.79368874,178.41,178.4,0.063]
[1739816486957,7.79368874,178.41,178.4,18.67695141]
[1739816487630,7.79368874,178.41,178.4,24.28225141]
[1739816488646,7.79368874,178.41,178.4,32.25695141]
[1739816490050,7.79368874,178.41,178.4,24.28225141]
[1739816490245,7.79368874,178.41,178.4,18.67695141]
[1739816490739,5.54872629,178.41,178.4,0.063]
[1739816491067,11.15372629,178.41,178.4,0.063]
[1739816491365,5.54872629,178.41,178.4,0.063]
[1739816491569,5.54872629,178.41,178.4,18.67695141]
[1739816492139,12.17776061,178.41,178.4,26.64995141]
[1739816492347,12.17776061,178.41,178.4,40.06179994]
[1739816492852,4.18966541,178.43,178.42,33.41184853]
[1739816493043,5.52413317,178.51,178.43,13.41184853]
[1739816493247,5.52413317,178.51,178.47,37.22790282]
[1739816493475,5.52413317,178.51,178.47,42.83100282]
[1739816493977,5.52413317,178.51,178.47,37.22790282]
[1739816494163,2.24412318,178.5,178.47,18.61395141]
[1739816495870,7.84632318,178.5,178.46,18.61395141]
[1739816496066,7.84632318,178.5,178.45,18.61395141]
[1739816496258,5.6022,178.5,178.45,18.61395141]
[1739816496647,5.6022,178.5,178.46,18.61395141]
[1739816496849,7.84592318,178.52,178.47,18.61395141]
[1739816497761,2.24412318,178.51,178.47,18.61395141]
[1739816498581,2.24412318,178.51,178.47,24.21705141]
[1739816499374,2.24412318,178.54,178.47,24.21705141]
[1739816500550,7.84522318,178.54,178.47,24.21705141]
[1739816500771,7.84522318,178.54,178.47,35.4664249]
[1739816500978,32.10744808,178.53,178.46,35.4667249]
[1739816501178,2.24412318,178.53,178.47,29.8633249]
[1739816502667,2.24412318,178.52,178.47,35.4664249]
[1739816503384,2.24412318,178.52,178.43,14.8509422]
[1739816503585,2.24412318,178.52,178.44,5.6041]
[1739816503887,2.24412318,178.51,178.47,29.8633249]
[1739816504783,2.24412318,178.51,178.5,20.0]
[1739816504983,5.52413317,178.55,178.51,13.41184853]
[1739816505282,5.52413317,178.55,178.54,29.8633249]
[1739816505463,0.03,178.56,178.54,29.8633249]
[1739816505667,0.03,178.56,178.55,29.8633249]
[1739816506784,0.03,178.56,178.5,20.0]
[1739816506976,0.03,178.56,178.51,29.8633249]
[1739816507173,1.43197743,178.56,178.51,29.8633249]
[1739816507378,29.8633249,178.55,178.49,29.8633249]
[1739816507984,29.8633249,178.54,178.48,29.8633249]
[1739816508570,4.14899444,178.53,178.49,29.8633249]
[1739816508775,5.55097187,178.53,178.49,29.8633249]
[1739816509176,5.55097187,178.53,178.48,29.8633249]
[1739816509999,5.55097187,178.53,178.49,29.8633249]
[1739816510200,1.40197743,178.53,178.49,29.8633249]
[1739816510498,1.40197743,178.52,178.49,29.8633249]
[1739816511583,1.40197743,178.52,178.49,35.4658249]
[1739816511786,1.40197743,178.52,178.51,29.8633249]
[1739816512307,5.55413317,178.56,178.51,29.8633249]
[1739816512611,5.55413317,178.56,178.55,29.8633249]
[1739816513106,0.03,178.56,178.53,29.8633249]
[1739816513505,1.43207328,178.56,178.53,29.8633249]
[1739816514015,7.03247328,178.56,178.51,29.8633249]
[1739816514307,29.8633249,178.55,178.49,29.8633249]
[1739816514512,29.8633249,178.55,178.5,29.8633249]
[1739816514810,7.03247328,178.56,178.51,29.8633249]
[1739816515197,1.40207328,178.54,178.51,29.8633249]
[1739816515582,1.40207328,178.54,178.5,29.8633249]
[1739816515800,1.40207328,178.54,178.51,29.8633249]
[1739816516008,1.40207328,178.54,178.53,29.8633249]
[1739816516609,1.40207328,178.55,178.53,29.8633249]
[1739816516807,1.40207328,178.55,178.54,29.8633249]
[1739816518309,0.03,178.56,178.5,20.0]
[1739816518493,0.03,178.56,178.52,29.8633249]
[1739816518687,0.03,178.56,178.51,29.8633249]
[1739816518881,5.6304,178.56,178.52,29.8633249]
[1739816519192,1.43207328,178.56,178.52,29.8633249]
[1739816519407,5.58849197,178.56,178.52,29.8633249]
[1739816519891,35.45181687,178.56,178.51,0.063]
[1739816520613,1.40207328,178.55,178.52,29.8633249]
[1739816520786,1.40207328,178.55,178.51,29.9263249]
[1739816521119,29.8633249,178.53,178.51,0.063]
[1739816521411,29.8633249,178.52,178.51,0.063]
[1739816522210,44.67724671,178.52,178.51,0.063]
[1739816523321,54.4352654,178.52,178.51,0.063]
[1739816523818,41.02341687,178.52,178.51,0.063]
[1739816526619,122.74641687,178.52,178.51,0.063]
[1739816528511,92.88309197,178.52,178.51,0.063]
[1739816529318,5.55849197,178.52,178.51,0.063]
[1739816530101,11.16009197,178.52,178.51,0.063]
[1739816530307,41.02341687,178.52,178.51,0.063]
[1739816530721,54.4352654,178.52,178.51,0.0001]
[1739816531221,56.0093654,178.52,178.51,0.0001]
[1739816532019,20.0,178.48,178.41,88.86]
[1739816532217,29.8633249,178.44,178.41,88.86]
[1739816532411,29.8633249,178.44,178.4,0.063]
[1739816532630,29.8633249,178.43,178.4,0.063]
[1739816533112,35.4680249,178.42,178.4,0.063]
[1739816533433,5.6047,178.42,178.4,0.063]
[1739816535227,14.009,178.46,178.4,0.063]
[1739816535228,29.8633249,178.43,178.4,0.063]
[1739816535628,29.8633249,178.42,178.4,0.063]
[1739816536309,29.8633249,178.41,178.4,0.063]
[1739816537531,35.4683249,178.41,178.4,0.063]
[1739816537833,7.00826489,178.41,178.4,0.063]
[1739816538405,41.03507203,178.41,178.4,0.063]
[1739816538610,41.03507203,178.41,178.4,0.0001]
[1739816539104,41.03507203,178.41,178.39,0.063]
[1739816539105,54.44692056,178.41,178.39,0.063]
[1739816539328,29.8633249,178.4,178.39,0.0001]
[1739816539706,35.4686249,178.4,178.39,0.0001]
[1739816540132,39.63210714,178.4,178.39,0.0001]
[1739816540313,54.44722056,178.4,178.39,0.0001]
[1739816542133,41.03537203,178.4,178.39,0.0001]
[1739816542618,54.44722056,178.4,178.39,0.0001]
[1739816543835,41.03537203,178.4,178.39,0.0001]
[1739816544240,11.17204713,178.4,178.39,0.0001]
[1739816544538,41.03537203,178.4,178.39,0.0001]
[1739816545811,54.44722056,178.4,178.39,0.0001]
[1739816546012,33.41184853,178.38,178.34,0.0001]
[1739816546217,35.4702249,178.35,178.33,0.0001]
[1739816546418,43.27517343,178.34,178.33,0.0001]
[1739816547229,29.8633249,178.34,178.33,0.0001]
[1739816547434,34.00769815,178.34,178.33,0.0001]
[1739816547650,47.41954668,178.34,178.33,0.0001]
[1739816548142,48.82281157,178.34,178.33,0.0001]
[1739816548344,54.43001157,178.34,178.33,0.0001]
[1739816549312,41.01816304,178.34,178.33,0.0001]
[1739816549516,11.15483814,178.34,178.33,0.0001]
[1739816549725,41.01816304,178.34,178.33,0.0001]
[1739816550319,36.87378979,178.34,178.33,0.0001]
[1739816551124,35.4705249,178.34,178.33,0.0001]
[1739816551325,48.88237343,178.34,178.33,0.0001]
[1739816553245,53.01487991,178.34,178.33,0.0001]
[1739816553940,53.01487991,178.34,178.27,0.063]
[1739816553941,20.0,178.3,178.27,0.063]
[1739816554141,20.0,178.26,178.22,0.063]
[1739816554352,35.4740249,178.23,178.22,0.063]
[1739816556743,5.6103,178.25,178.22,0.063]
[1739816557145,29.8633249,178.24,178.22,0.063]
[1739816558040,29.8633249,178.23,178.22,0.063]
[1739816558741,35.4740249,178.23,178.22,0.063]
[1739816559252,48.88587343,178.23,178.22,0.063]
[1739816559563,35.4740249,178.23,178.22,0.063]
[1739816561860,35.4740249,178.23,178.21,0.063]
[1739816562054,29.8633249,178.22,178.21,0.063]
[1739816563165,5.611,178.22,178.21,0.063]
[1739816563667,35.4743249,178.22,178.21,0.063]
[1739816563865,5.611,178.22,178.21,0.063]
[1739816564762,5.6094,178.27,178.21,29.9263249]
[1739816564972,5.6091,178.28,178.23,29.8633249]
[1739816565175,5.6091,178.28,178.21,0.063]
[1739816565176,29.8633249,178.27,178.21,0.063]
[1739816565466,29.8633249,178.23,178.21,0.063]
[1739816565641,29.8633249,178.24,178.21,0.063]
[1739816566039,29.8633249,178.23,178.21,0.063]
[1739816566357,29.8633249,178.25,178.21,0.063]
[1739816566578,29.8633249,178.26,178.21,0.063]
[1739816566952,5.61,178.25,178.21,0.063]
[1739816567577,5.61,178.25,178.22,29.8633249]
[1739816567777,82.1,178.27,178.23,29.8633249]
[1739816567778,5.6098,178.26,178.23,29.8633249]
[1739816568161,5.6098,178.26,178.22,29.8633249]
[1739816568378,5.6098,178.26,178.21,29.9263249]
[1739816568556,35.4731249,178.26,178.21,29.9263249]
[1739816568760,5.6098,178.26,178.23,29.8633249]
[1739816568975,5.6094,178.28,178.25,29.8633249]
[1739816569176,126.33013277,178.33,178.27,29.8633249]
[1739816569373,5.6078,178.32,178.27,29.8633249]
[1739816569678,35.4711249,178.32,178.26,29.8633249]
[1739816569861,36.87542642,178.32,178.26,29.8633249]
[1739816570195,7.01210152,178.32,178.27,29.8633249]
[1739816570680,7.01210152,178.32,178.28,29.8633249]
[1739816571079,7.01210152,178.32,178.27,29.8633249]
[1739816571464,36.87542642,178.32,178.26,29.8633249]
[1739816571781,29.8633249,178.31,178.25,29.8633249]
[1739816572477,35.4711249,178.32,178.26,29.8633249]
[1739816572786,29.8633249,178.31,178.25,29.8633249]
[1739816572988,31.2676071,178.31,178.25,29.8633249]
[1739816573170,5.6085,178.3,178.25,29.8633249]
[1739816574689,29.8633249,178.29,178.24,31.3759249]
[1739816574994,29.8633249,178.28,178.23,6.2918]
[1739816575989,4.13907494,178.27,178.23,6.2918]
[1739816576181,4.13907494,178.27,178.23,36.1551249]
[1739816576380,4.13907494,178.27,178.24,29.8633249]
[1739816576570,9.74857494,178.27,178.24,29.8633249]
[1739816577491,1.40447774,178.26,178.24,29.8633249]
[1739816577705,1.40447774,178.26,178.25,29.8633249]
[1739816578173,1.40447774,178.26,178.23,36.1551249]
[1739816578377,1.40447774,178.26,178.23,6.2918]
[1739816578686,7.01427774,178.26,178.21,31.9263249]
[1739816578869,1.40447774,178.27,178.24,29.8633249]
[1739816579075,1.40447774,178.27,178.25,29.8633249]
[1739816579681,1.40447774,178.27,178.25,29.8933249]
[1739816580067,1.40447774,178.27,178.25,0.03]
[1739816580268,82.1,178.29,178.26,29.8633249]
[1739816580495,82.1,178.29,178.28,29.8633249]
[1739816581094,82.1,178.29,178.26,29.8633249]
[1739816581705,83.50416308,178.29,178.26,29.8633249]
[1739816581903,89.11296308,178.29,178.25,29.8933249]
[1739816582613,89.11296308,178.29,178.25,18.74594139]
[1739816583293,1.40416308,178.28,178.25,18.74594139]
[1739816583685,1.40416308,178.28,178.26,18.71594139]
[1739816583919,1.40416308,178.28,178.27,18.71594139]
[1739816585107,1.40416308,178.28,178.25,18.74594139]
[1739816585516,1.40416308,178.28,178.26,18.71594139]
[1739816585813,82.1,178.29,178.26,18.71594139]
[1739816586016,82.1,178.29,178.28,18.71594139]
[1739816586185,82.1,178.29,178.27,18.71594139]